[Event "*** Titled Tuesday Blitz"]
[Site "Chess.com"]
[Date "2019.12.03"]
[Round "1"]
[White "FearNoEvil12"]
[Black "Winehouse83"]
[Result "0-1"]
[WhiteElo "1976"]
[BlackElo "2533"]
[TimeControl "180+2"]
[EndTime "13:11:11 PST"]
[Termination "Winehouse83 won by checkmate"]

1. e4 {[%clk 0:03:00.6]} 1... e5 {[%clk 0:02:42.8]} 2. d4 {[%clk 0:03:00.2]}
2... exd4 {[%clk 0:02:42.2]} 3. Bc4 {[%clk 0:03:01.5]} 3... Nc6 {[%clk
0:02:36.7]} 4. Nf3 {[%clk 0:03:02.7]} 4... Bc5 {[%clk 0:02:31.2]} 5. O-O {[%clk
0:03:02.1]} 5... d6 {[%clk 0:02:27.4]} 6. h3 {[%clk 0:03:00.9]} 6... Nf6 {[%clk
0:02:27]} 7. c3 {[%clk 0:03:01.3]} 7... dxc3 {[%clk 0:02:25.7]} 8. Nxc3 {[%clk
0:03:01.3]} 8... Be6 {[%clk 0:02:25.2]} 9. Nd5 {[%clk 0:02:57.5]} 9... Nd7
{[%clk 0:02:17.5]} 10. a3 {[%clk 0:02:48.1]} 10... O-O {[%clk 0:02:13.1]} 11. b4
{[%clk 0:02:47.8]} 11... Bb6 {[%clk 0:02:13.9]} 12. Bb2 {[%clk 0:02:49]} 12...
Nde5 {[%clk 0:02:10.6]} 13. Bb3 {[%clk 0:02:43]} 13... Qd7 {[%clk 0:01:52.3]}
14. Ng5 {[%clk 0:02:32.1]} 14... h6 {[%clk 0:01:33.3]} 15. Nxe6 {[%clk
0:02:20.4]} 15... fxe6 {[%clk 0:01:34.3]} 16. Nc3 {[%clk 0:02:18.5]} 16... Qf7
{[%clk 0:01:29.1]} 17. Qd2 {[%clk 0:02:15.6]} 17... Nd4 {[%clk 0:01:27.8]} 18.
Bd1 {[%clk 0:02:10]} 18... Nc4 {[%clk 0:01:27.4]} 19. Qc1 {[%clk 0:02:02.7]}
19... Nxb2 {[%clk 0:01:26.5]} 20. Qxb2 {[%clk 0:02:02.7]} 20... Nc6 {[%clk
0:01:27.9]} 21. Bb3 {[%clk 0:01:59]} 21... Ne5 {[%clk 0:01:26.3]} 22. Nd5 {[%clk
0:01:55.8]} 22... Nd3 {[%clk 0:01:21.8]} 23. Qe2 {[%clk 0:01:50.3]} 23... Ne5
{[%clk 0:01:16.3]} 24. Nxb6 {[%clk 0:01:48.6]} 24... axb6 {[%clk 0:01:18.2]} 25.
f4 {[%clk 0:01:48.2]} 25... Nc6 {[%clk 0:01:18.3]} 26. f5 {[%clk 0:01:47.8]}
26... Nd4 {[%clk 0:01:19]} 27. Qc4 {[%clk 0:01:35.5]} 27... Nxb3 {[%clk
0:01:14.6]} 28. fxe6 {[%clk 0:01:34.1]} 28... Qe7 {[%clk 0:01:09]} 29. Qxb3
{[%clk 0:01:34.7]} 29... Rae8 {[%clk 0:01:08.7]} 30. Rxf8+ {[%clk 0:01:27.9]}
30... Rxf8 {[%clk 0:01:03.5]} 31. Rf1 {[%clk 0:01:18.4]} 31... Rxf1+ {[%clk
0:00:56.4]} 32. Kxf1 {[%clk 0:01:18.3]} 32... c6 {[%clk 0:00:57.6]} 33. a4
{[%clk 0:01:12.9]} 33... Kf8 {[%clk 0:00:58.3]} 34. a5 {[%clk 0:01:12.7]} 34...
Qf6+ {[%clk 0:00:58]} 35. Kg1 {[%clk 0:01:12]} 35... Ke7 {[%clk 0:00:57.7]} 36.
axb6 {[%clk 0:01:10]} 36... Qd4+ {[%clk 0:00:58.3]} 37. Kh2 {[%clk 0:01:08.8]}
37... Qxe4 {[%clk 0:00:58.7]} 38. Qa2 {[%clk 0:00:45.8]} 38... Qe5+ {[%clk
0:00:56.3]} 39. Kh1 {[%clk 0:00:44.3]} 39... Qe1+ {[%clk 0:00:55.7]} 40. Kh2
{[%clk 0:00:42.6]} 40... Qxe6 {[%clk 0:00:55.9]} 41. Qa7 {[%clk 0:00:42.3]}
41... Qd7 {[%clk 0:00:54.8]} 42. Kh1 {[%clk 0:00:36.9]} 42... d5 {[%clk
0:00:55.9]} 43. Qb8 {[%clk 0:00:32.7]} 43... d4 {[%clk 0:00:51.9]} 44. Qe5+
{[%clk 0:00:32.1]} 44... Kf7 {[%clk 0:00:52.5]} 45. Qf4+ {[%clk 0:00:30]} 45...
Ke8 {[%clk 0:00:42.7]} 46. Qb8+ {[%clk 0:00:27.6]} 46... Ke7 {[%clk 0:00:31.4]}
47. Qe5+ {[%clk 0:00:28.1]} 47... Kf7 {[%clk 0:00:22.4]} 48. Qf4+ {[%clk
0:00:27.8]} 48... Kg6 {[%clk 0:00:13.1]} 49. Qc7 {[%clk 0:00:27.5]} 49... Qf5
{[%clk 0:00:11]} 50. Qd6+ {[%clk 0:00:25.1]} 50... Qf6 {[%clk 0:00:10.4]} 51.
Qg3+ {[%clk 0:00:22.8]} 51... Kh7 {[%clk 0:00:10.2]} 52. Qd3+ {[%clk 0:00:21.5]}
52... Kh8 {[%clk 0:00:10.1]} 53. Qg3 {[%clk 0:00:21.7]} 53... Qf5 {[%clk
0:00:05.3]} 54. Qb8+ {[%clk 0:00:21.2]} 54... Kh7 {[%clk 0:00:06.5]} 55. Qxb7
{[%clk 0:00:22.7]} 55... Qf1+ {[%clk 0:00:07.6]} 56. Kh2 {[%clk 0:00:22.5]}
56... Qf4+ {[%clk 0:00:09.1]} 57. Kg1 {[%clk 0:00:22.2]} 57... d3 {[%clk
0:00:09.7]} 58. Qd7 {[%clk 0:00:19.5]} 58... Qe3+ {[%clk 0:00:09.8]} 59. Kh2
{[%clk 0:00:19.4]} 59... Qe5+ {[%clk 0:00:11]} 60. Kg1 {[%clk 0:00:19.4]} 60...
Qe3+ {[%clk 0:00:12.1]} 61. Kh2 {[%clk 0:00:20.2]} 61... d2 {[%clk 0:00:13.5]}
62. Qd6 {[%clk 0:00:15.2]} 62... Qxb6 {[%clk 0:00:07.4]} 63. Qxd2 {[%clk
0:00:14.7]} 63... Qb5 {[%clk 0:00:08.9]} 64. Qc2+ {[%clk 0:00:14.7]} 64... Kg8
{[%clk 0:00:09.5]} 65. Qc5 {[%clk 0:00:15.6]} 65... Qxc5 {[%clk 0:00:10.3]} 66.
bxc5 {[%clk 0:00:16.6]} 66... Kf7 {[%clk 0:00:11.9]} 67. Kg3 {[%clk 0:00:18]}
67... Ke6 {[%clk 0:00:13.5]} 68. Kf4 {[%clk 0:00:18.7]} 68... Kd5 {[%clk
0:00:15]} 69. Kf5 {[%clk 0:00:19.8]} 69... Kxc5 {[%clk 0:00:16.5]} 70. Kg6
{[%clk 0:00:20.9]} 70... Kd4 {[%clk 0:00:16.8]} 71. Kxg7 {[%clk 0:00:22.2]}
71... c5 {[%clk 0:00:18.5]} 72. Kxh6 {[%clk 0:00:23.6]} 72... c4 {[%clk
0:00:20.1]} 73. g4 {[%clk 0:00:24.5]} 73... c3 {[%clk 0:00:21.7]} 74. g5 {[%clk
0:00:26.1]} 74... c2 {[%clk 0:00:23.3]} 75. h4 {[%clk 0:00:26.7]} 75... c1=Q
{[%clk 0:00:24.5]} 76. h5 {[%clk 0:00:28.6]} 76... Ke5 {[%clk 0:00:25.1]} 77.
Kg6 {[%clk 0:00:28.6]} 77... Qc6+ {[%clk 0:00:25.9]} 78. Kg7 {[%clk 0:00:29.5]}
78... Kf5 {[%clk 0:00:26.7]} 79. g6 {[%clk 0:00:28.8]} 79... Qf6+ {[%clk
0:00:27.7]} 80. Kh7 {[%clk 0:00:29.4]} 80... Kg5 {[%clk 0:00:22.8]} 81. g7
{[%clk 0:00:29.4]} 81... Qh6+ {[%clk 0:00:23.8]} 82. Kg8 {[%clk 0:00:29.8]}
82... Kf6 {[%clk 0:00:25.3]} 83. Kf8 {[%clk 0:00:28.3]} 83... Qxg7+ {[%clk
0:00:26.9]} 84. Ke8 {[%clk 0:00:28.7]} 84... Qe7# {[%clk 0:00:28.4]} 0-1

[Event "*** Titled Tuesday Blitz"]
[Site "Chess.com"]
[Date "2019.12.03"]
[Round "1"]
[White "Olga_Zhuravleva"]
[Black "Kimster98"]
[Result "1/2-1/2"]
[WhiteElo "2224"]
[BlackElo "2566"]
[TimeControl "180+2"]
[EndTime "13:11:37 PST"]
[Termination "Game drawn - insufficient material"]

1. e4 {[%clk 0:03:01.9]} 1... d6 {[%clk 0:03:00.2]} 2. d4 {[%clk 0:03:02.3]}
2... Nf6 {[%clk 0:03:01.7]} 3. Bd3 {[%clk 0:03:02.4]} 3... e5 {[%clk 0:03:02.3]}
4. c3 {[%clk 0:03:02.9]} 4... d5 {[%clk 0:03:03.4]} 5. dxe5 {[%clk 0:03:01.5]}
5... Nxe4 {[%clk 0:03:03.6]} 6. Nf3 {[%clk 0:02:58.7]} 6... Nc6 {[%clk
0:03:00.4]} 7. Bf4 {[%clk 0:02:56.1]} 7... Be7 {[%clk 0:02:59.1]} 8. Nbd2 {[%clk
0:02:55.4]} 8... Nc5 {[%clk 0:02:47.1]} 9. Bc2 {[%clk 0:02:52.9]} 9... O-O
{[%clk 0:02:45]} 10. O-O {[%clk 0:02:52.7]} 10... f6 {[%clk 0:02:40.8]} 11. exf6
{[%clk 0:02:40.4]} 11... Bxf6 {[%clk 0:02:42.7]} 12. Bg3 {[%clk 0:02:41.7]}
12... Be6 {[%clk 0:02:33.6]} 13. Nb3 {[%clk 0:02:37.7]} 13... Ne4 {[%clk
0:02:19.6]} 14. Re1 {[%clk 0:02:30.9]} 14... Bf5 {[%clk 0:02:14.5]} 15. Nbd4
{[%clk 0:02:16.9]} 15... Nxd4 {[%clk 0:02:09.8]} 16. Nxd4 {[%clk 0:02:14.6]}
16... Bd7 {[%clk 0:02:02.7]} 17. Bxe4 {[%clk 0:02:12.3]} 17... dxe4 {[%clk
0:01:59.3]} 18. Rxe4 {[%clk 0:02:12.9]} 18... c5 {[%clk 0:02:01.2]} 19. Nb3
{[%clk 0:01:58]} 19... b6 {[%clk 0:01:49.7]} 20. Qd5+ {[%clk 0:01:52.6]} 20...
Kh8 {[%clk 0:01:48.9]} 21. Rd1 {[%clk 0:01:52.7]} 21... Bb5 {[%clk 0:01:44.1]}
22. Qh5 {[%clk 0:01:48.9]} 22... Qc8 {[%clk 0:01:37.4]} 23. h3 {[%clk
0:01:46.8]} 23... Re8 {[%clk 0:01:31.1]} 24. Rde1 {[%clk 0:01:41.7]} 24... Rxe4
{[%clk 0:01:24.6]} 25. Rxe4 {[%clk 0:01:42.3]} 25... Bc6 {[%clk 0:01:24.4]} 26.
Re1 {[%clk 0:01:38.2]} 26... Qd7 {[%clk 0:01:18.6]} 27. Rd1 {[%clk 0:01:37.6]}
27... Qe8 {[%clk 0:01:17.5]} 28. Qg4 {[%clk 0:01:32.7]} 28... Rd8 {[%clk
0:01:13.8]} 29. Rxd8 {[%clk 0:01:22.6]} 29... Qxd8 {[%clk 0:01:15.7]} 30. Qe2
{[%clk 0:01:23.6]} 30... Qe8 {[%clk 0:01:07.2]} 31. Qxe8+ {[%clk 0:01:23.1]}
31... Bxe8 {[%clk 0:01:09.1]} 32. Bb8 {[%clk 0:01:21.7]} 32... Bd8 {[%clk
0:00:56.6]} 33. Bxa7 {[%clk 0:01:18.3]} 33... Bc7 {[%clk 0:00:57.5]} 34. Nd2
{[%clk 0:01:17.2]} 34... Bf7 {[%clk 0:00:55.1]} 35. b3 {[%clk 0:01:15.7]} 35...
Kg8 {[%clk 0:00:53.2]} 36. a4 {[%clk 0:01:12.1]} 36... Kf8 {[%clk 0:00:54]} 37.
a5 {[%clk 0:01:12]} 37... bxa5 {[%clk 0:00:55.9]} 38. Bxc5+ {[%clk 0:01:12.3]}
38... Ke8 {[%clk 0:00:57.8]} 39. Kf1 {[%clk 0:01:11.4]} 39... Kd7 {[%clk
0:00:58.1]} 40. Ke2 {[%clk 0:01:12.4]} 40... Kc6 {[%clk 0:00:54.6]} 41. Bf8
{[%clk 0:01:13.1]} 41... g6 {[%clk 0:00:55.6]} 42. Kd3 {[%clk 0:01:09.9]} 42...
Bf4 {[%clk 0:00:56.5]} 43. Nc4 {[%clk 0:01:05.3]} 43... Kb5 {[%clk 0:00:50.5]}
44. Na3+ {[%clk 0:00:56.1]} 44... Kc6 {[%clk 0:00:50.1]} 45. c4 {[%clk
0:00:56.6]} 45... Be6 {[%clk 0:00:41.5]} 46. Nb5 {[%clk 0:00:52.7]} 46... Bf5+
{[%clk 0:00:41.2]} 47. Kd4 {[%clk 0:00:48.2]} 47... Bd2 {[%clk 0:00:33.3]} 48.
f3 {[%clk 0:00:27.3]} 48... Bc2 {[%clk 0:00:26.9]} 49. Na7+ {[%clk 0:00:21.1]}
49... Kb7 {[%clk 0:00:25.3]} 50. Bc5 {[%clk 0:00:20.8]} 50... Bxb3 {[%clk
0:00:25.2]} 51. Nb5 {[%clk 0:00:22.1]} 51... Kc6 {[%clk 0:00:21.5]} 52. Bf8
{[%clk 0:00:22.5]} 52... a4 {[%clk 0:00:19.9]} 53. Kd3 {[%clk 0:00:23.6]} 53...
Ba5 {[%clk 0:00:18.4]} 54. Nd4+ {[%clk 0:00:24.6]} 54... Kb6 {[%clk 0:00:18.2]}
55. Nxb3 {[%clk 0:00:24.1]} 55... axb3 {[%clk 0:00:20.1]} 56. Bg7 {[%clk
0:00:24.1]} 56... Kc5 {[%clk 0:00:19.7]} 57. Bf8+ {[%clk 0:00:25.4]} 57... Kc6
{[%clk 0:00:20.7]} 58. g3 {[%clk 0:00:26.8]} 58... Be1 {[%clk 0:00:21.3]} 59. g4
{[%clk 0:00:27.1]} 59... Ba5 {[%clk 0:00:20.2]} 60. f4 {[%clk 0:00:28.2]} 60...
h5 {[%clk 0:00:21.5]} 61. gxh5 {[%clk 0:00:28.9]} 61... gxh5 {[%clk 0:00:22.6]}
62. f5 {[%clk 0:00:30.5]} 62... Kd7 {[%clk 0:00:23.1]} 63. c5 {[%clk 0:00:29.7]}
63... Be1 {[%clk 0:00:19.3]} 64. Bg7 {[%clk 0:00:30.4]} 64... Bb4 {[%clk
0:00:20.1]} 65. Kc4 {[%clk 0:00:31.2]} 65... Ba3 {[%clk 0:00:19]} 66. Kc3 {[%clk
0:00:28.3]} 66... Bxc5 {[%clk 0:00:18.7]} 67. Kxb3 {[%clk 0:00:29.7]} 67... Ke8
{[%clk 0:00:19.2]} 68. Kc4 {[%clk 0:00:30.3]} 68... Bf2 {[%clk 0:00:20.8]} 69.
Kd5 {[%clk 0:00:30.9]} 69... Kf7 {[%clk 0:00:21.8]} 70. Bc3 {[%clk 0:00:30.8]}
70... Bh4 {[%clk 0:00:23.3]} 71. Ke4 {[%clk 0:00:32]} 71... Bg5 {[%clk
0:00:24.4]} 72. Be1 {[%clk 0:00:31.1]} 72... Kf6 {[%clk 0:00:24.9]} 73. h4
{[%clk 0:00:31.4]} 73... Bh6 {[%clk 0:00:26.3]} 74. Bg3 {[%clk 0:00:32.3]} 74...
Kf7 {[%clk 0:00:27.6]} 75. Ke5 {[%clk 0:00:32.8]} 75... Bg7+ {[%clk 0:00:29]}
76. Ke4 {[%clk 0:00:33.5]} 76... Bf6 {[%clk 0:00:30.5]} 77. Kf4 {[%clk
0:00:31.9]} 77... Bd8 {[%clk 0:00:31.2]} 78. Ke5 {[%clk 0:00:32.6]} 78... Bc7+
{[%clk 0:00:32.2]} 79. Ke4 {[%clk 0:00:33.9]} 79... Bxg3 {[%clk 0:00:34.1]} 80.
Kf3 {[%clk 0:00:35.1]} 80... Bxh4 {[%clk 0:00:35.5]} 81. Kg2 {[%clk 0:00:36.4]}
81... Kf6 {[%clk 0:00:37.4]} 82. Kh2 {[%clk 0:00:37.5]} 82... Bg5 {[%clk
0:00:39]} 83. Kh1 {[%clk 0:00:38.9]} 83... Bf4 {[%clk 0:00:40.5]} 84. Kg2 {[%clk
0:00:39.8]} 84... Kxf5 {[%clk 0:00:41.1]} 85. Kh1 {[%clk 0:00:41]} 85... Kg4
{[%clk 0:00:43]} 86. Kg2 {[%clk 0:00:42.1]} 86... Be5 {[%clk 0:00:43.4]} 87. Kh1
{[%clk 0:00:43.1]} 87... Bd6 {[%clk 0:00:45.3]} 88. Kg1 {[%clk 0:00:44.1]} 88...
Bc7 {[%clk 0:00:47.2]} 89. Kh1 {[%clk 0:00:45.5]} 89... Bb8 {[%clk 0:00:49.1]}
90. Kg1 {[%clk 0:00:46.8]} 90... Ba7+ {[%clk 0:00:51]} 91. Kh1 {[%clk
0:00:47.9]} 91... Bb6 {[%clk 0:00:52.9]} 92. Kg2 {[%clk 0:00:48.9]} 92... Bc5
{[%clk 0:00:54.8]} 93. Kh1 {[%clk 0:00:50.1]} 93... Bd4 {[%clk 0:00:56.7]} 94.
Kg2 {[%clk 0:00:51.5]} 94... Be3 {[%clk 0:00:58.6]} 95. Kh1 {[%clk 0:00:52.7]}
95... Bf4 {[%clk 0:00:59.8]} 96. Kg2 {[%clk 0:00:53.9]} 96... Bg3 {[%clk
0:01:00.2]} 97. Kh1 {[%clk 0:00:55.1]} 97... Kf3 {[%clk 0:01:02.1]} 98. Kg1
{[%clk 0:00:56.2]} 98... h4 {[%clk 0:00:54]} 99. Kh1 {[%clk 0:00:57.3]} 99... h3
{[%clk 0:00:55.9]} 100. Kg1 {[%clk 0:00:58.3]} 100... h2+ {[%clk 0:00:57.8]}
101. Kh1 {[%clk 0:00:59.3]} 101... Ke4 {[%clk 0:00:58.2]} 102. Kg2 {[%clk
0:01:00]} 102... h1=Q+ {[%clk 0:00:59.1]} 103. Kxh1 {[%clk 0:01:00.8]} 1/2-1/2

[Event "*** Titled Tuesday Blitz"]
[Site "Chess.com"]
[Date "2019.12.03"]
[Round "1"]
[White "RiskyDecision"]
[Black "albano87"]
[Result "1/2-1/2"]
[WhiteElo "2526"]
[BlackElo "2084"]
[TimeControl "180+2"]
[EndTime "13:12:02 PST"]
[Termination "Game drawn by repetition"]

1. d4 {[%clk 0:03:01.3]} 1... d5 {[%clk 0:02:59.7]} 2. c4 {[%clk 0:03:01.7]}
2... e6 {[%clk 0:03:00.8]} 3. Nf3 {[%clk 0:03:02]} 3... Nf6 {[%clk 0:03:01.8]}
4. g3 {[%clk 0:03:03]} 4... Be7 {[%clk 0:03:02.5]} 5. Bg2 {[%clk 0:03:03.7]}
5... O-O {[%clk 0:03:03.6]} 6. O-O {[%clk 0:03:05.3]} 6... dxc4 {[%clk
0:03:05.2]} 7. Qa4 {[%clk 0:03:06.4]} 7... a6 {[%clk 0:03:05.5]} 8. Qxc4 {[%clk
0:03:07.5]} 8... b5 {[%clk 0:03:06.7]} 9. Qc2 {[%clk 0:03:08.5]} 9... Bb7 {[%clk
0:03:08.3]} 10. Bd2 {[%clk 0:03:09.7]} 10... Be4 {[%clk 0:03:08.2]} 11. Qc1
{[%clk 0:03:10.7]} 11... Qc8 {[%clk 0:03:00.8]} 12. Nc3 {[%clk 0:03:07.6]} 12...
Bb7 {[%clk 0:03:00.5]} 13. Qc2 {[%clk 0:03:00]} 13... c5 {[%clk 0:02:57.6]} 14.
dxc5 {[%clk 0:02:59]} 14... Bxc5 {[%clk 0:02:54.2]} 15. Rac1 {[%clk 0:02:55.5]}
15... Nbd7 {[%clk 0:02:37.5]} 16. a3 {[%clk 0:02:46.8]} 16... Qd8 {[%clk
0:02:31.2]} 17. Rfd1 {[%clk 0:02:38.7]} 17... Qb6 {[%clk 0:02:25.8]} 18. e3
{[%clk 0:02:20.5]} 18... Rac8 {[%clk 0:02:23.9]} 19. Ng5 {[%clk 0:02:13.1]}
19... h6 {[%clk 0:02:16.6]} 20. Bxb7 {[%clk 0:02:07.9]} 20... Qxb7 {[%clk
0:02:16.6]} 21. Nge4 {[%clk 0:02:07.7]} 21... Be7 {[%clk 0:02:01.5]} 22. Be1
{[%clk 0:02:00.9]} 22... Ne5 {[%clk 0:01:59.5]} 23. Nxf6+ {[%clk 0:01:40.2]}
23... Bxf6 {[%clk 0:02:00.5]} 24. e4 {[%clk 0:01:16.1]} 24... Nf3+ {[%clk
0:01:56.2]} 25. Kg2 {[%clk 0:01:15.1]} 25... Nxe1+ {[%clk 0:01:48.4]} 26. Rxe1
{[%clk 0:01:15.7]} 26... Bxc3 {[%clk 0:01:32.3]} 27. bxc3 {[%clk 0:01:15.7]}
27... Rc4 {[%clk 0:01:33.9]} 28. f3 {[%clk 0:01:07.5]} 28... Rfc8 {[%clk
0:01:34.7]} 29. Re3 {[%clk 0:00:59.5]} 29... Qc6 {[%clk 0:01:18.4]} 30. Qb3
{[%clk 0:00:50]} 30... Qc5 {[%clk 0:01:16.5]} 31. Rd3 {[%clk 0:00:50.7]} 31...
a5 {[%clk 0:01:11.9]} 32. Rb1 {[%clk 0:00:35.6]} 32... Rxc3 {[%clk 0:01:08.2]}
33. Rxc3 {[%clk 0:00:35.9]} 33... Qxc3 {[%clk 0:01:09.7]} 34. Qxc3 {[%clk
0:00:28.8]} 34... Rxc3 {[%clk 0:01:09.4]} 35. Rxb5 {[%clk 0:00:30.7]} 35... Rxa3
{[%clk 0:01:10.7]} 36. h4 {[%clk 0:00:20.8]} 36... g6 {[%clk 0:01:01.1]} 37. h5
{[%clk 0:00:21.4]} 37... g5 {[%clk 0:00:55.4]} 38. e5 {[%clk 0:00:19]} 38... a4
{[%clk 0:00:49.6]} 39. Ra5 {[%clk 0:00:19.4]} 39... Kg7 {[%clk 0:00:50.3]} 40.
Ra7 {[%clk 0:00:18.9]} 40... Ra2+ {[%clk 0:00:49.8]} 41. Kh3 {[%clk 0:00:19.4]}
41... a3 {[%clk 0:00:48.8]} 42. Kg4 {[%clk 0:00:20.8]} 42... Ra1 {[%clk
0:00:44.2]} 43. Ra8 {[%clk 0:00:21.6]} 43... Re1 {[%clk 0:00:40.4]} 44. Rxa3
{[%clk 0:00:21.6]} 44... Rxe5 {[%clk 0:00:41.8]} 45. Ra4 {[%clk 0:00:22.5]}
45... Re1 {[%clk 0:00:37.4]} 46. f4 {[%clk 0:00:20.2]} 46... f5+ {[%clk
0:00:34]} 47. Kh3 {[%clk 0:00:20.9]} 47... Rh1+ {[%clk 0:00:34]} 48. Kg2 {[%clk
0:00:22.3]} 48... Rxh5 {[%clk 0:00:34.7]} 49. Ra6 {[%clk 0:00:21.6]} 49... Kf6
{[%clk 0:00:34.3]} 50. Rb6 {[%clk 0:00:22.2]} 50... gxf4 {[%clk 0:00:34.1]} 51.
gxf4 {[%clk 0:00:24.1]} 51... Rh4 {[%clk 0:00:35.6]} 52. Rb4 {[%clk 0:00:22.2]}
52... Rg4+ {[%clk 0:00:35.4]} 53. Kf3 {[%clk 0:00:23.5]} 53... h5 {[%clk
0:00:36.1]} 54. Rb8 {[%clk 0:00:24.6]} 54... Rg1 {[%clk 0:00:36.4]} 55. Rh8
{[%clk 0:00:23.8]} 55... Rh1 {[%clk 0:00:36.8]} 56. Kg2 {[%clk 0:00:24.2]} 56...
Rh4 {[%clk 0:00:36.6]} 57. Kg3 {[%clk 0:00:25.5]} 57... Rg4+ {[%clk 0:00:37.3]}
58. Kf3 {[%clk 0:00:26.8]} 58... h4 {[%clk 0:00:38.4]} 59. Rh6+ {[%clk
0:00:22.4]} 59... Ke7 {[%clk 0:00:39.8]} 60. Rh8 {[%clk 0:00:21.5]} 60... Kd7
{[%clk 0:00:37.3]} 61. Ke3 {[%clk 0:00:21.2]} 61... Rg3+ {[%clk 0:00:36.8]} 62.
Kf2 {[%clk 0:00:22.1]} 62... Rb3 {[%clk 0:00:28.2]} 63. Rxh4 {[%clk 0:00:22.1]}
63... Kd6 {[%clk 0:00:30.1]} 64. Rh8 {[%clk 0:00:18.7]} 64... Kd5 {[%clk
0:00:31.3]} 65. Re8 {[%clk 0:00:19.9]} 65... Rc3 {[%clk 0:00:31.2]} 66. Ke2
{[%clk 0:00:19.6]} 66... Ra3 {[%clk 0:00:30]} 67. Kf2 {[%clk 0:00:20.2]} 67...
Ke4 {[%clk 0:00:31.1]} 68. Rxe6+ {[%clk 0:00:20.5]} 68... Kxf4 {[%clk
0:00:32.1]} 69. Re2 {[%clk 0:00:20.8]} 69... Rf3+ {[%clk 0:00:31.5]} 70. Kg2
{[%clk 0:00:21.1]} 70... Re3 {[%clk 0:00:32.1]} 71. Rb2 {[%clk 0:00:20.5]} 71...
Kg4 {[%clk 0:00:33.3]} 72. Kf2 {[%clk 0:00:20.7]} 72... Rh3 {[%clk 0:00:33.2]}
73. Kg2 {[%clk 0:00:20.8]} 73... Ra3 {[%clk 0:00:34.4]} 74. Rb4+ {[%clk
0:00:20.6]} 74... f4 {[%clk 0:00:28.5]} 75. Rb2 {[%clk 0:00:21.2]} 75... Rc3
{[%clk 0:00:28.4]} 76. Ra2 {[%clk 0:00:21.7]} 76... Rg3+ {[%clk 0:00:27.6]} 77.
Kf2 {[%clk 0:00:22]} 77... Rh3 {[%clk 0:00:29.3]} 78. Ra8 {[%clk 0:00:17.8]}
78... Rh2+ {[%clk 0:00:29.8]} 79. Kg1 {[%clk 0:00:18.6]} 79... Rb2 {[%clk
0:00:31.4]} 80. Ra3 {[%clk 0:00:17.8]} 80... Rc2 {[%clk 0:00:31.6]} 81. Rb3
{[%clk 0:00:18.3]} 81... Rd2 {[%clk 0:00:31.2]} 82. Ra3 {[%clk 0:00:19.2]} 82...
f3 {[%clk 0:00:31.4]} 83. Ra8 {[%clk 0:00:19]} 83... Rc2 {[%clk 0:00:32]} 84.
Rg8+ {[%clk 0:00:19.2]} 84... Kf4 {[%clk 0:00:33.6]} 85. Rf8+ {[%clk 0:00:17.2]}
85... Kg4 {[%clk 0:00:34.8]} 86. Rg8+ {[%clk 0:00:18]} 86... Kf4 {[%clk
0:00:36.4]} 87. Rf8+ {[%clk 0:00:19.1]} 87... Kg4 {[%clk 0:00:38]} 88. Rg8+
{[%clk 0:00:19.5]} 1/2-1/2